lending/lending_fUSD_20251004
["ID","MTS","AMOUNT","RATE_DAILY","PERIOD"]
[389225347,1759619461995,-674.91361432,0.00016438,2]
[389225348,1759619462004,-654.84,0.00016438,2]
[389225349,1759619462013,-1995.62,0.00016438,2]
[389225350,1759619462023,-1995.62,0.00016438,2]
[389225351,1759619462032,-1995.62,0.00016438,2]
[389225352,1759619462041,-654.84,0.00016438,2]
[389225353,1759619462051,-1995.62,0.00016438,2]
[389225354,1759619462061,-654.84,0.00016438,2]
[389225355,1759619462071,-1995.62,0.00016438,2]
[389225356,1759619462080,-655.07957336,0.00016438,2]
[389225357,1759619462089,-1995.62,0.00016438,2]
[389225358,1759619462099,-500.0,0.00016438,2]
[389225359,1759619462109,-1995.62,0.00016438,2]
[389225360,1759619462118,-500.0,0.00016438,2]
[389225361,1759619462128,-1995.62,0.00016438,2]
[389225362,1759619462137,-169.16378531,0.00016438,2]
[389225363,1759619462146,-1995.62,0.00016438,2]
[389225364,1759619462155,-1995.62,0.00016438,2]
[389225365,1759619462164,-1995.62,0.00016438,2]
[389225366,1759619462173,-1995.62,0.00016438,2]
[389225367,1759619462183,-1995.62,0.00016438,2]
[389225368,1759619462192,-1995.62,0.00016438,2]
[389225369,1759619462201,-1995.62,0.00016438,2]
[389225370,1759619462211,-1995.62,0.00016438,2]
[389225371,1759619462220,-1468.63,0.00016438,2]
[389225372,1759619462230,-1995.62,0.00016438,2]
[389225373,1759619462240,-1468.63,0.00016438,2]
[389225374,1759619462249,-1995.62,0.00016438,2]
[389225375,1759619462259,-151.0,0.00016438,2]
[389225376,1759619462268,-500.0,0.00016438,2]
[389225377,1759619462277,-1468.63,0.00016438,2]
[389225378,1759619462291,-1995.62,0.00016438,2]
[389225379,1759619462300,-500.0,0.00016438,2]
[389225380,1759619462311,-1468.63,0.00016438,2]
[389225381,1759619462320,-1995.62,0.00016438,2]
[389225382,1759619462330,-500.0,0.00016438,2]
[389225383,1759619462339,-1468.63,0.00016438,2]
[389225384,1759619462349,-1995.84712527,0.00016438,2]
[389225385,1759619462359,-503.79,0.00016438,2]
[389225386,1759619462368,-1468.63,0.00016438,2]
[389225387,1759619462378,-1468.63,0.00016438,2]
[389225388,1759619462387,-500.0,0.00016438,2]
[389225389,1759619462396,-1468.63,0.00016438,2]
[389225390,1759619462406,-500.0,0.00016438,2]
[389225391,1759619462415,-1468.63,0.00016438,2]
[389225392,1759619462424,-501.0,0.00016438,2]
[389225393,1759619462434,-1468.63,0.00016438,2]
[389225394,1759619462443,-1468.63,0.00016438,2]
[389225395,1759619462453,-151.0,0.00016438,2]
[389225396,1759619462462,-1468.63,0.00016438,2]
[389225397,1759619462472,-151.0,0.00016438,2]
[389225398,1759619462481,-1468.63,0.00016438,2]
[389225399,1759619462491,-151.0,0.00016438,2]
[389225400,1759619462500,-151.0,0.00016438,2]
[389225401,1759619462509,-1468.63,0.00016438,2]
[389225402,1759619462519,-151.0,0.00016438,2]
[389225403,1759619462529,-151.0,0.00016438,2]
[389225404,1759619462538,-1468.63,0.00016438,2]
[389225405,1759619462547,-4013.65,0.00016438,2]
[389225406,1759619462556,-151.0,0.00016438,2]
[389225407,1759619462566,-1468.63,0.00016438,2]
[389225408,1759619462575,-2429.46,0.00016438,2]
[389225409,1759619462584,-4013.65,0.00016438,2]
[389225410,1759619462594,-151.0,0.00016438,2]
[389225411,1759619462603,-1468.63,0.00016438,2]
[389225412,1759619462613,-2429.46,0.00016438,2]
[389225413,1759619462623,-152.222825,0.00016438,2]
[389225414,1759619462632,-1468.63,0.00016438,2]
[389225415,1759619462641,-2429.46,0.00016438,2]
[389225416,1759619462651,-220.198397,0.00016438,2]
[389225417,1759619462661,-1468.63,0.00016438,2]
[389225418,1759619462670,-2429.46,0.00016438,2]
[389225419,1759619462680,-1468.63,0.00016438,2]
[389225420,1759619462690,-2429.46,0.00016438,2]
[389225421,1759619462701,-1468.63,0.00016438,2]
[389225422,1759619462713,-2429.46,0.00016438,2]
[389225423,1759619462722,-1468.63,0.00016438,2]
[389225424,1759619462732,-2429.46,0.00016438,2]
[389225425,1759619462742,-1468.63,0.00016438,2]
[389225426,1759619462752,-2429.46,0.00016438,2]
[389225427,1759619462762,-1468.84448727,0.00016438,2]
[389225428,1759619462771,-2429.46,0.00016438,2]
[389225429,1759619462781,-2429.46,0.00016438,2]
[389225430,1759619462790,-2429.46,0.00016438,2]
[389225431,1759619462799,-2429.46,0.00016438,2]
[389225432,1759619462809,-2429.46,0.00016438,2]
[389225433,1759619462818,-2429.46,0.00016438,2]
[389225434,1759619462828,-2429.46,0.00016438,2]
[389225435,1759619462837,-2429.46,0.00016438,2]
[389225436,1759619462846,-2429.46,0.00016438,2]
[389225437,1759619462855,-2429.46,0.00016438,2]
[389225438,1759619462865,-2429.46,0.00016438,2]
[389225439,1759619462874,-2429.46,0.00016438,2]
[389225440,1759619463081,-2429.46,0.00016438,2]
[389225441,1759619463091,-2429.46,0.00016438,2]
[389225442,1759619463100,-2429.46,0.00016438,2]
[389225443,1759619463110,-500.0,0.00016438,2]
[389225444,1759619463120,-2429.46,0.00016438,2]
[389225445,1759619463129,-500.0,0.00016438,2]
[389225446,1759619463138,-500.0,0.00016438,2]
[389225447,1759619463148,-500.0,0.00016438,2]
[389225448,1759619463158,-500.0,0.00016438,2]
[389225449,1759619463167,-500.0,0.00016438,2]
[389225450,1759619463177,-500.0,0.00016438,2]
[389225451,1759619463186,-4013.65,0.00016438,2]
[389225452,1759619463196,-500.0,0.00016438,2]
[389225453,1759619463206,-500.0,0.00016438,2]
[389225454,1759619463215,-4013.65,0.00016438,2]
[389225455,1759619463225,-500.0,0.00016438,2]
[389225456,1759619463234,-4013.65,0.00016438,2]
[389225457,1759619463244,-500.0,0.00016438,2]
[389225458,1759619463253,-4013.65,0.00016438,2]
[389225459,1759619463264,-608.61,0.00016438,2]
[389225460,1759619463273,-4013.65,0.00016438,2]
[389225461,1759619463283,-608.61,0.00016438,2]
[389225462,1759619463293,-4013.65,0.00016438,2]
[389225463,1759619463302,-608.61,0.00016438,2]
[389225464,1759619463312,-500.0,0.00016438,2]
[389225465,1759619463323,-4013.65,0.00016438,2]
[389225466,1759619463332,-608.61,0.00016438,2]
[389225467,1759619463342,-608.61,0.00016438,2]
[389225468,1759619463351,-4013.65,0.00016438,2]
[389225469,1759619463361,-467.57015406,0.00016438,2]
[389225470,1759619463370,-608.61,0.00016438,2]
[389225471,1759619463379,-4013.65,0.00016438,2]
[389225472,1759619463389,-608.61,0.00016438,2]
[389225473,1759619463399,-4013.65,0.00016438,2]
[389225474,1759619463408,-608.61,0.00016438,2]
[389225475,1759619463417,-4013.65,0.00016438,2]
[389225476,1759619463427,-608.61,0.00016438,2]
[389225477,1759619463436,-4013.65,0.00016438,2]
[389225478,1759619463446,-4013.65,0.00016438,2]
[389225479,1759619463455,-608.61,0.00016438,2]
[389225480,1759619463464,-4013.65,0.00016438,2]
[389225481,1759619463474,-608.61,0.00016438,2]
[389225482,1759619463483,-4013.65,0.00016438,2]
[389225483,1759619463492,-608.61,0.00016438,2]
[389225484,1759619463501,-4013.65,0.00016438,2]
[389225485,1759619463512,-608.61,0.00016438,2]
[389225486,1759619463523,-3128.88436741,0.00016438,2]
[389225487,1759619463633,-884.76563259,0.00016438,2]
[389225488,1759619463643,-608.61,0.00016438,2]
[389225489,1759619463653,-4013.65,0.00016438,2]
[389225490,1759619463663,-608.61,0.00016438,2]
[389225491,1759619463673,-4013.65,0.00016438,2]
[389225492,1759619463683,-608.61,0.00016438,2]
[389225493,1759619463693,-4013.65,0.00016438,2]
[389225494,1759619463706,-608.61,0.00016438,2]
[389225495,1759619463716,-4013.65,0.00016438,2]
[389225496,1759619463725,-608.61,0.00016438,2]
[389225497,1759619463735,-608.61,0.00016438,2]
[389225498,1759619463745,-4013.72109184,0.00016438,2]
[389225499,1759619463755,-427.98578715,0.00016438,2]
[389225500,1759619463775,-180.62421285,0.00016438,2]
[389225501,1759619463786,-608.61,0.00016438,2]
[389225502,1759619463796,-385.76578715,0.00016438,2]
[389225503,1759619463812,-222.84421285,0.00016438,2]
[389225504,1759619463826,-500.0,0.00016438,2]
[389225505,1759619463836,-382.15578715,0.00016438,2]
[389225506,1759619474585,-185.41,0.00012753,2]
[389225507,1759619526491,-7.86,0.00012753,2]
[389225508,1759619526516,-145.64376745,0.00013232,2]
[389225526,1759620632090,-1200.0,0.00013621,2]
[389225528,1759620632100,-209.0,0.00013621,2]
[389225530,1759620632109,-300.0,0.00013621,2]
[389225532,1759620632118,-300.0,0.00013621,2]
[389225534,1759620632128,-237.0,0.00013621,2]
[389225536,1759620632137,-150.0,0.00013621,2]
[389225537,1759620632146,-500.0,0.00013622,2]
[389225538,1759620632155,-500.0,0.00013622,2]
[389225539,1759620632165,-34.45491353,0.00013622,2]
[389225540,1759620632227,-465.54508647,0.00013622,2]
[389225541,1759620632238,-537.85950232,0.00013622,2]
[389225542,1759620632247,-500.0,0.00013622,2]
[389225543,1759620632257,-500.0,0.00013622,2]
[389225544,1759620632266,-500.0,0.00013622,2]
[389225545,1759620632276,-500.0,0.00013622,2]
[389225546,1759620632285,-500.0,0.00013622,2]
[389225547,1759620632294,-403.35498104,0.00013622,2]
[389225548,1759620632306,-96.64501896,0.00013622,2]
[389225549,1759620632316,-500.0,0.00013622,2]
[389225550,1759620632326,-500.0,0.00013622,2]
[389225551,1759620632335,-500.0,0.00013622,2]
[389225552,1759620632345,-500.0,0.00013622,2]
[389225553,1759620632354,-500.0,0.00013622,2]
[389225554,1759620632363,-500.0,0.00013622,2]
[389225556,1759620632372,-500.0,0.00013622,2]
[389225558,1759620632382,-500.0,0.00013622,2]
[389225559,1759620632391,-500.0,0.00013622,2]
[389225560,1759620632400,-500.0,0.00013622,2]
[389225561,1759620632410,-500.0,0.00013622,2]
[389225562,1759620632419,-500.0,0.00013622,2]
[389225563,1759620632428,-500.0,0.00013622,2]
[389225564,1759620632442,-500.0,0.00013622,2]
[389225565,1759620632452,-500.0,0.00013622,2]
[389225566,1759620632462,-500.0,0.00013622,2]
[389225567,1759620632471,-500.0,0.00013622,2]
[389225568,1759620632481,-306.75528319,0.00013622,2]
[389225569,1759620632491,-500.0,0.00013622,2]
[389225570,1759620632500,-500.0,0.00013622,2]
[389225571,1759620632509,-500.0,0.00013622,2]
[389225572,1759620632519,-500.0,0.00013622,2]
[389225573,1759620632529,-500.0,0.00013622,2]
[389225575,1759620632538,-500.0,0.00013622,2]
[389225577,1759620632548,-500.0,0.00013622,2]
[389225579,1759620632558,-500.0,0.00013622,2]
[389225581,1759620632567,-200.0,0.00013622,2]
[389225583,1759620632576,-500.0,0.00013622,2]
[389225584,1759620632586,-500.0,0.00013622,2]
[389225585,1759620632595,-2000.0,0.00013623,2]
[389225586,1759620632606,-1565.0,0.00013625,2]
[389225587,1759620632615,-2000.0,0.0001372,2]
[389225588,1759620632625,-198.95907078,0.0001372,2]
[389225589,1759620632634,-1565.0,0.00013899,2]
[389225590,1759620632644,-200.0,0.00013957,2]
[389225591,1759620632653,-12798.45577659,0.00014106,2]
[389225592,1759620632665,-11684.1962733,0.00014106,2]
[389225593,1759620632675,-1565.0,0.00014173,2]
[389225594,1759620632684,-166.66,0.00014262,2]
[389225595,1759620632694,-300.0,0.000144,5]
[389225596,1759620632704,-1565.0,0.00014447,2]
[389225597,1759620632714,-600.0,0.000145,5]
[389225598,1759620632724,-904.11,0.00014586,2]
[389225599,1759620632733,-1000.0,0.000146,5]
[389225600,1759620632743,-13607.1,0.00014688,2]
[389225601,1759620632752,-150.99,0.00014688,2]
[389225602,1759620632761,-459.0,0.00014695,2]
[389225603,1759620632770,-1300.0,0.000147,5]
[389225604,1759620632780,-1565.0,0.00014721,2]
[389225605,1759620632789,-166.66,0.00014733,2]
[389225606,1759620632799,-255.0,0.00014737,2]
[389225607,1759620632808,-6372.14161258,0.00014759,2]
[389225608,1759620632832,-531.171,0.00014759,2]
[389225609,1759620632882,-771.42738742,0.00014759,2]
[389225610,1759620632891,-195.0,0.00014769,2]
[389225611,1759620632900,-195.0,0.00014769,2]
[389225612,1759620632909,-303.52149836,0.00014769,2]
[389225613,1759620632918,-150.0,0.0001477,2]
[389225614,1759620632928,-150.0,0.0001477,2]
[389225615,1759620632937,-150.0,0.0001477,2]
[389225616,1759620632946,-150.0,0.0001477,2]
[389225617,1759620632956,-1200.6202628,0.000148,5]
[389225618,1759620638371,-224.95760392,0.00013621,2]
[389225620,1759620638382,-607.28800588,0.00013621,2]
[389225622,1759620638391,-500.0,0.00013621,2]
[389225624,1759620638401,-204.8586866,0.00013621,2]
[389225626,1759620638412,-284.7548854,0.00013621,2]
[389225628,1759620638421,-642.95,0.00013852,2]
[389225630,1759620638431,-642.95,0.00014544,2]
[389225631,1759620638440,-399.3797372,0.000148,5]
[389225633,1759620638450,-165.0,0.00014804,2]
[389225635,1759620638459,-300.0,0.00014856,2]
[389225637,1759620638469,-1332.21918926,0.00014856,2]
[389225798,1759620640415,-623.49738546,0.00014856,2]
[389225802,1759620640439,-438.44342528,0.00014856,2]
[389225804,1759620640449,-545.29,0.00014856,2]
[389225806,1759620640458,-122.97652477,0.00014856,2]
[389225808,1759620640469,-217.12347523,0.00014856,2]
[389225810,1759620640479,-150.0,0.00014856,2]
[389225812,1759620640488,-150.0,0.00014856,2]
[389225814,1759620640498,-175.59,0.00014856,2]
[389225816,1759620640507,-338.77392959,0.00014856,2]
[389225819,1759620640520,-93.88607041,0.00014856,2]
[389225821,1759620640530,-1197.32,0.00014856,2]
[389225823,1759620640539,-150.0,0.00014856,2]
[389225825,1759620640548,-1197.32,0.00014856,2]
[389225827,1759620640558,-150.0,0.00014856,2]
[389225829,1759620640567,-39.09469551,0.00014856,2]
[389225831,1759620640579,-1147.48530449,0.00014856,2]
[389225833,1759620640588,-1017.0,0.00014858,2]
[389225835,1759620640597,-300.0,0.000149,5]
[389225837,1759620640607,-2496.2480071,0.000149,2]
[389225841,1759620640638,-3784.75556588,0.000149,2]
[389225844,1759620640653,-374.27019079,0.000149,2]
[389225846,1759620640663,-160.73597816,0.000149,2]
[389225848,1759620640672,-1730.79019073,0.000149,2]
[389225850,1759620640683,-3779.62863851,0.000149,2]
[389225852,1759620640700,-690.94567573,0.000149,2]
[389225855,1759620640711,-4129.71441029,0.000149,2]
[389225857,1759620640723,-3932.50058805,0.000149,2]
[389225859,1759620640733,-159.42000055,0.00014918,2]
[389225861,1759620640742,-420.0,0.00014928,2]
[389225863,1759620640756,-214.49192877,0.00014933,2]
[389225865,1759620640765,-166.0,0.00014968,2]
[389225867,1759620640775,-500.0,0.00014973,2]
[389225870,1759620640784,-500.0,0.00014973,2]
[389225872,1759620640793,-500.0,0.00014973,2]
[389225873,1759620640803,-500.0,0.00014973,2]
[389225875,1759620640812,-500.0,0.00014973,2]
[389225878,1759620640824,-1680.0,0.00014983,2]
[389225880,1759620640832,-195.0,0.00014983,2]
[389225882,1759620640842,-250.0,0.00014984,2]
[389225884,1759620640851,-3.94388197,0.00014984,2]
[389225887,1759620640871,-296.05611803,0.00014984,2]
[389225889,1759620640880,-300.0,0.00014984,2]
[389225891,1759620640889,-305.5565728,0.00014984,2]
[389225893,1759620640898,-500.0,0.00014984,2]
[389225895,1759620640907,-195.0,0.00014984,2]
[389225897,1759620640917,-195.0,0.00014984,2]
[389225899,1759620640927,-1191.00653098,0.00014984,2]
[389225902,1759620640947,-452.20582707,0.00014984,2]
[389225904,1759620640958,-356.78764195,0.00014984,2]
[389225906,1759620640968,-354.35623255,0.00014984,2]
[389225908,1759620640977,-150.13,0.0001499,2]
[389225910,1759620640986,-150.13,0.0001499,2]
[389225912,1759620640995,-150.13,0.0001499,2]
[389225914,1759620641004,-150.13,0.0001499,2]
[389225916,1759620641014,-150.13,0.0001499,2]
[389225918,1759620641023,-1565.0,0.00014995,2]
[389225920,1759620641032,-35987.11714845,0.00015,2]
[389225922,1759620641041,-577054.78813676,0.00015,2]
[389225926,1759620641071,-23648.98270561,0.00015,2]
[389225928,1759620641082,-410.3727676,0.00015,2]
[389226131,1759620643106,-275.99312935,0.00015,2]
[389226137,1759620643155,-126552.08536854,0.00015,2]
[389226442,1759620646070,-23281.84772417,0.00015,2]
[389226465,1759620646280,-1722.8711037,0.00015,2]
[389226714,1759621832646,-150.0,0.00013488,2]
[389226715,1759621832656,-250.0,0.00013548,2]
[389226716,1759621832665,-1200.0,0.00013608,2]
[389226717,1759621832675,-150.0,0.00013609,2]
[389226718,1759621832684,-241.0,0.000137,2]
[389226719,1759621832694,-374.69071924,0.00013912,2]
[389226720,1759621832704,-425.10160412,0.00013912,2]
[389226721,1759621832713,-173.68637519,0.00013912,2]
[389226722,1759621832722,-234.72078266,0.00013912,2]
[389226723,1759621832731,-500.0,0.00013912,2]
[389226724,1759621832740,-160.93247098,0.00013912,2]
[389226725,1759621832749,-500.0,0.00013912,2]
[389226726,1759621832758,-536.72,0.00013913,2]
[389226727,1759621832767,-150.99,0.00013913,2]
[389226728,1759621832777,-9244.00012334,0.00013913,2]
[389226729,1759621832789,-755.98987666,0.00013913,2]
[389226731,1759621832798,-795.85632834,0.00013913,2]
[389226733,1759621832809,-647.72367166,0.00013913,2]
[389226735,1759621832819,-293.07,0.00013926,2]
[389226737,1759621832827,-23.27067729,0.00013926,2]
[389226739,1759621832839,-52407.27999627,0.00013926,2]
[389226741,1759621832850,-29049.38932644,0.00013926,2]
[389226744,1759621832859,-150.99,0.00013926,2]
[389226745,1759621832870,-5397.58,0.00013926,2]
[389226748,1759621832879,-310.06,0.00013926,2]
[389226749,1759621832889,-150.99,0.00013926,2]
[389226751,1759621832898,-166.33,0.00013982,2]
[389226753,1759621832910,-12904.84,0.00013982,2]
[389226755,1759621832919,-418.52,0.00013982,2]
[389226757,1759621832928,-9999.99,0.00013982,2]
[389226759,1759621832937,-999.99,0.00013982,2]
[389226761,1759621832947,-1524.73,0.00013982,2]
[389226763,1759621832956,-7842.33,0.00013982,2]
[389226765,1759621832965,-666.0,0.0001419,3]
[389226767,1759621832975,-237.58,0.00014239,2]
[389226769,1759621832986,-1500.0,0.00014275,2]
[389226771,1759621832995,-489.0,0.00014649,2]
[389226773,1759621833004,-255.0,0.00014725,2]
[389226775,1759621833013,-175.59,0.00014795,2]
[389226777,1759621833025,-455.06,0.00014795,2]
[389226779,1759621833034,-487.81522471,0.000148,2]
[389226781,1759621833043,-264.19,0.00014804,2]
[389226783,1759621833053,-487.81522471,0.00014811,2]
[389226785,1759621833062,-487.81522471,0.00014822,2]
[389226787,1759621833071,-487.81522471,0.00014833,2]
[389226789,1759621833080,-434.13378396,0.00014835,2]
[389226791,1759621833089,-300.0,0.00014836,2]
[389226793,1759621833099,-250.0,0.00014836,2]
[389226795,1759621833108,-300.0,0.00014836,2]
[389226797,1759621833118,-2500.0,0.00014836,2]
[389226799,1759621833128,-2539.0451274,0.00014836,2]
[389226801,1759621833137,-2500.0,0.00014836,2]
[389226803,1759621833146,-2500.0,0.00014836,2]
[389226805,1759621833155,-2500.0,0.00014836,2]
[389226807,1759621833164,-72.87478257,0.00014836,2]
[389226810,1759621833184,-177.12521743,0.00014836,2]
[389226812,1759621833194,-300.0,0.00014836,2]
[389226814,1759621833203,-300.0,0.00014836,2]
[389226816,1759621833212,-300.0,0.00014836,2]
[389226818,1759621833222,-172.84888557,0.00014836,2]
[389226820,1759621833231,-1236.0,0.00014841,2]
[389226822,1759621833241,-487.81522471,0.00014844,2]
[389226824,1759621833251,-487.81522471,0.00014856,2]
[389226826,1759621833260,-487.81522471,0.00014867,2]
[389226828,1759621833270,-487.81522471,0.00014878,2]
[389226830,1759621833279,-236.0,0.0001488,2]
[389226832,1759621833289,-151.0,0.00014888,2]
[389226834,1759621833298,-151.0,0.00014888,2]
[389226836,1759621833307,-151.0,0.00014888,2]
[389226838,1759621833316,-151.0,0.00014888,2]
[389226840,1759621833325,-151.0,0.00014888,2]
[389226842,1759621833335,-332.20330044,0.00014888,2]
[389226844,1759621833344,-151.0,0.00014888,2]
[389226846,1759621833353,-151.0,0.00014888,2]
[389226848,1759621833362,-151.0,0.00014888,2]
[389226850,1759621833371,-151.0,0.00014888,2]
[389226852,1759621833381,-151.0,0.00014888,2]
[389226854,1759621833390,-151.0,0.00014888,2]
[389226856,1759621833399,-151.0,0.00014888,2]
[389226858,1759621833408,-151.0,0.00014888,2]
[389226860,1759621833417,-151.0,0.00014888,2]
[389226862,1759621833426,-151.0,0.00014888,2]
[389226864,1759621833435,-151.0,0.00014888,2]
[389226866,1759621833444,-151.0,0.00014888,2]
[389226868,1759621833452,-200.0,0.00014888,2]
[389226870,1759621833461,-159.97358766,0.00014888,2]
[389226872,1759621833470,-180.06018685,0.00014888,2]
[389226874,1759621833480,-202.20974195,0.00014888,2]
[389226876,1759621833489,-487.81522471,0.00014889,2]
[389226878,1759621833498,-1000.0,0.00014896,2]
[389226880,1759621833507,-1685.43,0.00014897,2]
[389226882,1759621833516,-191.53738914,0.00014897,2]
[389226884,1759621833525,-176.81923973,0.00014897,2]
[389226886,1759621833534,-1201.59779956,0.00014897,2]
[389226888,1759621833544,-1201.59779948,0.00014897,2]
[389226890,1759621833553,-1201.59779948,0.00014898,2]
[389226892,1759621833562,-1201.59779948,0.00014898,2]
[389226894,1759621833571,-1201.59779948,0.00014898,2]
[389226896,1759621833580,-1201.59779948,0.00014899,2]
[389226898,1759621833589,-1201.59779948,0.00014899,2]
[389226900,1759621833599,-1201.59779948,0.00014899,2]
[389226902,1759621833608,-1201.59779948,0.000149,2]
[389226904,1759621833618,-162.66321058,0.000149,2]
[389226906,1759621833627,-487.81522471,0.000149,2]
[389226908,1759621833636,-206.1726232,0.000149,2]
[389226910,1759621833644,-173.59505012,0.000149,2]
[389226912,1759621833654,-1201.59779948,0.000149,2]
[389226914,1759621833663,-1680.0,0.00014969,2]
[389226916,1759621833672,-616.25957772,0.00014973,2]
[389226918,1759621833682,-500.0,0.00014973,2]
[389226919,1759621833691,-500.0,0.00014973,2]
[389226922,1759621833701,-512.85212368,0.00014973,2]
[389226924,1759621833711,-500.0,0.00014973,2]
[389226926,1759621833721,-500.0,0.00014973,2]
[389226927,1759621833730,-500.0,0.00014973,2]
[389226929,1759621833739,-3753.19,0.00014987,2]
[389226932,1759621833749,-3753.19,0.0001499,2]
[389226934,1759621833759,-15928.84145053,0.00014997,2]
[389226936,1759621833771,-32217.77563434,0.00014997,2]
[389226938,1759621833782,-697.52122527,0.00014997,2]
[389226940,1759621833793,-60589.69291156,0.00014997,2]
[389226941,1759621833803,-13557.7303696,0.00014997,2]
[389226942,1759621833812,-1975.5439672,0.00014997,2]
[389226943,1759621833822,-162.6347327,0.00014997,2]
[389226944,1759621833831,-3160.0150154,0.00014997,2]
[389226945,1759621833840,-122878.0001272,0.00014997,2]
[389226946,1759621833850,-151.0,0.00014997,2]
[389226947,1759621833859,-17993.55857422,0.00015,2]
[389226948,1759621833870,-542460.06228986,0.00015,2]
[389226949,1759621833884,-1520.65679396,0.00015,2]
[389226950,1759621833896,-24548.49495727,0.00015,2]
[389226951,1759621833912,-759.80301203,0.00015,2]
[389226952,1759621833946,-696.16346476,0.00015,2]
[389226953,1759621833957,-1387.20657822,0.00015,2]
[389226954,1759621833989,-4472.61728148,0.00015,2]
[389226992,1759621838224,-3600.0,0.00015,2]
[389226993,1759621838236,-2737.53953495,0.00015,2]
[389226994,1759621838247,-281.783442,0.00015,2]
[389226995,1759621838310,-12957.20663294,0.00015,2]
[389226996,1759621838386,-1103.59933006,0.00015,2]
[389226997,1759621838397,-6513.66560955,0.00015,2]
[389226998,1759621838408,-2311.16,0.00015,2]
[389226999,1759621838463,-6661.54687367,0.00015,2]
[389227000,1759621838475,-720.245,0.00015,2]
[389227001,1759621838486,-69141.05231346,0.00015,2]
[389227184,1759621840454,-408.89920287,0.00013607,2]
[389227185,1759621840464,-91.10079713,0.00013607,2]
[389227186,1759621840475,-408.89920287,0.00013607,2]
[389227187,1759621840484,-500.0,0.00013607,2]
[389227188,1759621840493,-163.45732819,0.00013607,2]
[389227190,1759621840503,-500.0,0.00013607,2]
[389227192,1759621840512,-500.0,0.00013607,2]
[389227194,1759621840522,-500.0,0.00013607,2]
[389227196,1759621840532,-500.0,0.00013607,2]
[389227198,1759621840541,-500.0,0.00013607,2]
[389227200,1759621840551,-500.0,0.00013607,2]
[389227202,1759621840560,-89562.96049635,0.00015,2]
[389227204,1759621840573,-362.00749824,0.00015,2]
[389227211,1759621840630,-500.0,0.00013607,2]
[389227213,1759621840640,-500.0,0.00013607,2]
[389227215,1759621840650,-49702.32736267,0.00015,2]
[389227217,1759621840661,-208500.0,0.00015,2]
[389227223,1759621840707,-500.0,0.00013607,2]
[389227225,1759621840717,-353.86922575,0.00015,2]
[389227250,1759621840936,-500.0,0.00013607,2]
[389227252,1759621840947,-500.0,0.00013607,2]
[389227254,1759621840955,-314716.16557391,0.00015,2]
[389227256,1759621840966,-1835.6326148,0.00015,2]
[389227260,1759621840999,-500.0,0.00013607,2]
[389227262,1759621841008,-19698.08888693,0.00015,2]
[389227531,1759621843541,-500.0,0.00013607,2]
[389227533,1759621843551,-108.052521,0.00013607,2]
[389227536,1759621843562,-391.947479,0.00013607,2]
[389227538,1759621843571,-500.0,0.00013607,2]
[389227540,1759621843581,-142.51950592,0.00015,2]
[389227592,1759621844044,-641.0,0.00015,2]
[389227599,1759621844095,-179894.56289248,0.00015,2]
[389227601,1759621844106,-153312.45206422,0.00015,2]
[389227603,1759621844120,-337.88,0.00015,2]
[389227816,1759621846319,-1208.01769192,0.00015,2]
[389227818,1759621846331,-742.78962878,0.00015,2]
[389227825,1759621846387,-2491.46728808,0.00015,2]
[389227833,1759621846454,-5861.61175261,0.00015,2]